fUST/lending_fUST_20250117
["ID","MTS","AMOUNT","RATE_DAILY","PERIOD"]
[349234190,1737057048146,-500.0,0.00019178,2]
[349234191,1737057048157,-500.0,0.00019178,2]
[349234192,1737057048167,-500.0,0.00019178,2]
[349234193,1737057048176,-500.0,0.00019178,2]
[349234194,1737057048185,-500.0,0.00019178,2]
[349234195,1737057048196,-500.0,0.00019178,2]
[349234196,1737057048206,-500.0,0.00019178,2]
[349234197,1737057048215,-168.3434991,0.00019178,2]
[349234198,1737057048225,-166.989045,0.00019178,2]
[349234199,1737057048236,-151.0,0.00019215,2]
[349234200,1737057048246,-151.0,0.00019232,2]
[349234201,1737057048256,-574.75583119,0.00019241,2]
[349234202,1737057048266,-500.0,0.00019315,3]
[349234203,1737057048277,-500.0,0.00019315,3]
[349234204,1737057048287,-500.0,0.00019315,3]
[349234205,1737057048297,-151.0,0.00019315,2]
[349234206,1737057048307,-151.0,0.00019315,2]
[349234207,1737057048317,-710.17,0.00019315,3]
[349234208,1737057048326,-500.0,0.00019315,3]
[349234209,1737057048335,-500.0,0.00019315,2]
[349234210,1737057048345,-500.0,0.00019315,3]
[349234211,1737057048357,-500.0,0.00019315,3]
[349234212,1737057048367,-500.0,0.00019315,3]
[349234213,1737057048377,-627.83,0.00019315,3]
[349234214,1737057048387,-500.0,0.00019315,3]
[349234215,1737057048397,-500.0,0.00019315,3]
[349234216,1737057048406,-500.0,0.00019315,3]
[349234217,1737057048416,-341.11,0.00019315,3]
[349234218,1737057048425,-500.0,0.00019315,3]
[349234219,1737057048435,-908.16589737,0.00019372,2]
[349234220,1737057048445,-248.09206803,0.00019396,2]
[349234221,1737057048455,-201.86611333,0.000194,2]
[349234222,1737057048464,-168.803,0.00019413,2]
[349234223,1737057048474,-151.0,0.00019452,2]
[349234224,1737057048485,-500.0,0.00019452,3]
[349234225,1737057048494,-500.0,0.00019452,3]
[349234226,1737057048504,-500.0,0.00019452,3]
[349234227,1737057048514,-710.17,0.00019452,3]
[349234228,1737057048523,-500.0,0.00019452,3]
[349234229,1737057048532,-165.75169,0.00019452,2]
[349234230,1737057048542,-500.0,0.00019452,2]
[349234231,1737057048551,-151.0,0.00019452,2]
[349234232,1737057048561,-151.0,0.00019452,2]
[349234233,1737057048571,-500.0,0.00019452,3]
[349234234,1737057048580,-627.83,0.00019452,3]
[349234235,1737057048590,-500.0,0.00019452,3]
[349234236,1737057048600,-500.0,0.00019452,3]
[349234237,1737057048610,-500.0,0.00019452,3]
[349234238,1737057048619,-151.0,0.00019489,2]
[349234239,1737057048629,-151.0,0.00019489,2]
[349234240,1737057048638,-500.0,0.00019489,2]
[349234241,1737057048648,-500.0,0.00019489,2]
[349234242,1737057048658,-500.39717318,0.00019489,2]
[349234243,1737057048668,-158.44061407,0.000195,2]
[349234244,1737057048677,-500.0,0.00019544,2]
[349234245,1737057048687,-500.0,0.00019544,2]
[349234246,1737057048697,-151.11699435,0.00019544,2]
[349234247,1737057048706,-237.70147985,0.00019544,2]
[349234248,1737057048716,-212.14207611,0.00019564,2]
[349234249,1737057048728,-500.0,0.00019564,2]
[349234250,1737057048738,-500.0,0.00019589,3]
[349234251,1737057048748,-500.0,0.00019589,3]
[349234252,1737057048757,-500.0,0.00019589,3]
[349234253,1737057048767,-710.17,0.00019589,3]
[349234254,1737057048776,-500.0,0.00019589,3]
[349234255,1737057048786,-500.0,0.00019589,2]
[349234256,1737057048796,-500.0,0.00019589,3]
[349234257,1737057048805,-627.83,0.00019589,3]
[349234258,1737057048814,-500.0,0.00019589,3]
[349234259,1737057048823,-500.0,0.00019589,3]
[349234260,1737057048833,-500.0,0.00019589,3]
[349234261,1737057048843,-500.0,0.00019607,2]
[349234262,1737057048852,-160.12395882,0.0001967,2]
[349234263,1737057048862,-500.0,0.00019678,2]
[349234264,1737057048871,-201.86611333,0.000197,2]
[349234265,1737057048881,-233.85383586,0.00019726,3]
[349234266,1737057048890,-500.0,0.00019726,3]
[349234267,1737057048900,-500.0,0.00019726,3]
[349234268,1737057048909,-710.17,0.00019726,3]
[349234269,1737057048919,-233.01,0.00019726,3]
[349234270,1737057048928,-500.0,0.00019726,2]
[349234271,1737057048938,-249.710285,0.00019726,2]
[349234272,1737057048948,-500.0,0.00019726,3]
[349234273,1737057048958,-627.83,0.00019726,3]
[349234274,1737057048968,-500.0,0.00019726,3]
[349234275,1737057049090,-500.0,0.00019726,3]
[349234276,1737057049100,-500.0,0.00019726,3]
[349234277,1737057049113,-805.6034847,0.00019799,2]
[349234278,1737057049123,-151.0,0.00019799,2]
[349234279,1737057049133,-151.0,0.00019799,2]
[349234280,1737057049142,-500.0,0.00019863,3]
[349234281,1737057049152,-710.17,0.00019863,3]
[349234282,1737057049163,-500.0,0.00019863,2]
[349234283,1737057049173,-500.0,0.00019863,3]
[349234284,1737057049183,-627.83,0.00019863,3]
[349234285,1737057049194,-500.0,0.00019863,3]
[349234286,1737057049204,-500.0,0.00019863,3]
[349234287,1737057049213,-500.0,0.00019863,3]
[349234288,1737057049224,-800.77136213,0.00019942,2]
[349234289,1737057049235,-151.0,0.00019998,2]
[349234290,1737057049244,-900.0,0.00019999,2]
[349234291,1737057049253,-151.0,0.00019999,2]
[349234292,1737057049264,-317.83,0.0002,2]
[349234293,1737057049273,-150.03226368,0.0002,2]
[349234294,1737057049283,-2960.0,0.0002,2]
[349234295,1737057049292,-300.0,0.0002,8]
[349234296,1737057049302,-500.0,0.0002,3]
[349234297,1737057049313,-151.0,0.0002,2]
[349234298,1737057049322,-160.586759,0.0002,2]
[349234299,1737057049332,-183.99898311,0.0002,2]
[349234300,1737057049342,-710.17,0.0002,3]
[349234301,1737057049351,-641.04,0.0002,2]
[349234302,1737057049361,-500.0,0.0002,3]
[349234303,1737057049371,-627.83,0.0002,3]
[349234304,1737057049380,-500.0,0.0002,3]
[349234305,1737057049389,-631.12891581,0.0002,3]
[349234306,1737057049399,-500.0,0.0002,3]
[349234307,1737057049408,-201.86611333,0.0002,2]
[349234308,1737057049417,-574.75583119,0.00020108,2]
[349234309,1737057049427,-500.0,0.00020136,3]
[349234310,1737057049437,-710.17,0.00020136,3]
[349234311,1737057049447,-500.0,0.00020136,3]
[349234312,1737057049456,-627.83,0.00020136,3]
[349234313,1737057049465,-500.0,0.00020136,3]
[349234314,1737057049475,-500.0,0.00020136,3]
[349234315,1737057049485,-1292.558,0.00020193,2]
[349234316,1737057049495,-500.0,0.00020226,2]
[349234317,1737057049505,-500.0,0.00020273,3]
[349234318,1737057049514,-710.17,0.00020273,3]
[349234319,1737057049523,-500.0,0.00020273,3]
[349234320,1737057049533,-627.83,0.00020273,3]
[349234321,1737057049543,-500.0,0.00020273,3]
[349234322,1737057049552,-500.0,0.00020273,3]
[349234323,1737057049562,-201.86611333,0.000203,2]
[349234324,1737057049571,-500.0,0.00020381,2]
[349234325,1737057049581,-500.0,0.0002041,3]
[349234326,1737057049591,-710.17,0.0002041,3]
[349234327,1737057049600,-568.7705323,0.0002041,3]
[349234328,1737057049610,-627.83,0.0002041,3]
[349234329,1737057049619,-500.0,0.0002041,3]
[349234330,1737057049630,-328.17,0.0002041,3]
[349234331,1737057049639,-169.742498,0.00020521,2]
[349234332,1737057049648,-250.101636,0.00020547,2]
[349234333,1737057049657,-500.0,0.00020547,3]
[349234334,1737057049667,-710.17,0.00020547,3]
[349234335,1737057049676,-627.83,0.00020547,3]
[349234336,1737057049686,-500.0,0.00020547,3]
[349234337,1737057049695,-151.0,0.00020548,2]
[349234338,1737057049704,-204.79379082,0.00020592,2]
[349234339,1737057049713,-201.86611333,0.000206,2]
[349234340,1737057049722,-169.742498,0.00020603,2]
[349234341,1737057049734,-500.0,0.00020684,3]
[349234342,1737057049743,-710.17,0.00020684,3]
[349234343,1737057049751,-627.83,0.00020684,3]
[349234344,1737057049761,-500.0,0.00020684,3]
[349234345,1737057049771,-169.742498,0.00020685,2]
[349234346,1737057049780,-169.742498,0.00020767,2]
[349234347,1737057049790,-500.0,0.00020821,3]
[349234348,1737057049800,-710.17,0.00020821,3]
[349234349,1737057049809,-627.83,0.00020821,3]
[349234350,1737057049819,-500.0,0.00020821,3]
[349234351,1737057049828,-169.742498,0.00020849,2]
[349234352,1737057049838,-201.86611333,0.000209,2]
[349234353,1737057049848,-169.742498,0.00020932,2]
[349234354,1737057049857,-500.0,0.00020958,3]
[349234355,1737057049867,-710.17,0.00020958,3]
[349234356,1737057049876,-627.83,0.00020958,3]
[349234357,1737057049886,-500.0,0.00020958,3]
[349234358,1737057049895,-574.75583119,0.00020975,2]
[349234359,1737057049905,-169.742498,0.00021014,2]
[349234360,1737057049914,-900.0,0.00021095,2]
[349234361,1737057049924,-500.0,0.00021095,3]
[349234362,1737057049933,-710.17,0.00021095,3]
[349234363,1737057049943,-627.83,0.00021095,3]
[349234364,1737057049952,-500.0,0.00021095,3]
[349234365,1737057049962,-169.742498,0.00021096,2]
[349234366,1737057049971,-201.86611333,0.000212,2]
[349234367,1737057049983,-500.0,0.00021232,3]
[349234368,1737057049992,-710.17,0.00021232,3]
[349234369,1737057050002,-627.83,0.00021232,3]
[349234370,1737057050011,-500.0,0.00021232,3]
[349234371,1737057050020,-166.182604,0.00021327,2]
[349234372,1737057050030,-500.0,0.00021369,3]
[349234373,1737057050040,-710.17,0.00021369,3]
[349234374,1737057050049,-627.83,0.00021369,3]
[349234375,1737057050059,-300.0,0.000215,9]
[349234376,1737057050069,-201.86611333,0.000215,2]
[349234377,1737057050078,-500.0,0.00021506,3]
[349234378,1737057050087,-710.17,0.00021506,3]
[349234379,1737057050097,-627.83,0.00021506,3]
[349234380,1737057050106,-2960.0,0.000216,4]
[349234381,1737057050120,-500.0,0.00021643,3]
[349234382,1737057050129,-710.17,0.00021643,3]
[349234383,1737057050139,-627.83,0.00021643,3]
[349234384,1737057050148,-500.0,0.0002178,3]
[349234385,1737057050158,-710.17,0.0002178,3]
[349234386,1737057050169,-627.83,0.0002178,3]
[349234387,1737057050178,-201.86611333,0.000218,3]
[349234388,1737057050188,-1200.0,0.00021826,2]
[349234389,1737057050199,-574.75583119,0.00021842,2]
[349234390,1737057050208,-784.7045,0.0002189,3]
[349234391,1737057050218,-500.0,0.00021917,3]
[349234392,1737057050229,-710.17,0.00021917,3]
[349234393,1737057050239,-499.0,0.00021917,2]
[349234394,1737057050248,-627.83,0.00021917,3]
[349234395,1737057050258,-620.0,0.00022,2]
[349234396,1737057050267,-500.0,0.00022054,3]
[349234397,1737057050277,-710.17,0.00022054,3]
[349234398,1737057050287,-627.83,0.00022054,3]
[349234399,1737057050297,-204.79379082,0.00022083,2]
[349234400,1737057050306,-201.86611333,0.000221,3]
[349234401,1737057050315,-153.63,0.00022108,2]
[349234402,1737057050325,-900.0,0.00022191,2]
[349234403,1737057050335,-420.57404341,0.00022191,3]
[349234404,1737057050344,-710.17,0.00022191,3]
[349234405,1737057050354,-627.83,0.00022191,3]
[349234406,1737057050363,-710.4086275,0.00022328,3]
[349234407,1737057050374,-627.8778,0.00022328,3]
[349234408,1737057050384,-162.0,0.00022349,2]
[349234409,1737057050394,-162.0,0.00022349,2]
[349234410,1737057050405,-162.0,0.00022349,2]
[349234411,1737057050415,-162.0,0.00022349,2]
[349234412,1737057050426,-162.0,0.00022349,2]
[349234413,1737057050436,-162.0,0.00022349,2]
[349234414,1737057050445,-162.0,0.00022349,2]
[349234415,1737057050455,-162.0,0.00022349,2]
[349234416,1737057050464,-162.0,0.00022349,2]
[349234417,1737057050475,-168.67,0.00022349,2]
[349234418,1737057050486,-2990.47047813,0.000225,2]
[349234419,1737057050496,-410.98616556,0.000225,2]
[349234420,1737057050506,-151.0,0.000225,10]
[349234421,1737057050516,-214.0,0.00022576,2]
[349234422,1737057050525,-214.94,0.00022576,2]
[349234423,1737057050535,-157.0,0.00022576,2]
[349234424,1737057050544,-157.0,0.00022576,2]
[349234425,1737057050554,-157.0,0.00022576,2]
[349234426,1737057050563,-157.0,0.00022576,2]
[349234427,1737057050573,-157.0,0.00022576,2]
[349234428,1737057050583,-157.0,0.00022576,2]
[349234429,1737057050592,-157.0,0.00022576,2]
[349234430,1737057050602,-157.0,0.00022576,2]
[349234431,1737057050612,-157.0,0.00022576,2]
[349234432,1737057050621,-267.32,0.00022576,2]
[349234433,1737057050631,-34216.00529752,0.0002258,60]
[349234434,1737057050641,-3829.00874583,0.000226,2]
[349234435,1737057050650,-3829.0087458,0.000226,2]
[349234436,1737057050659,-3829.0087458,0.000226,2]
[349234437,1737057050669,-157.0,0.00022622,2]
[349234438,1737057050679,-157.0,0.00022622,2]
[349234439,1737057050688,-157.0,0.00022622,2]
[349234440,1737057050698,-214.63,0.00022622,2]
[349234441,1737057050707,-574.75583119,0.00022708,2]
[349234442,1737057050716,-371.2358012,0.00022712,2]
[349234443,1737057050725,-945.77105671,0.0002287,2]
[349234444,1737057050737,-7438.69753278,0.00023,2]
[349234445,1737057050746,-200.31549085,0.00023,2]
[349234446,1737057050755,-2944.17978665,0.00023,7]
[349234447,1737057050765,-7594.73623605,0.00023,2]
[349234448,1737057050775,-594.99348102,0.00023,2]
[349234449,1737057050784,-379.42632576,0.00023,14]
[349234450,1737057334760,159.542364,0.00013973,2]
[349234657,1737058238218,-537.04471418,0.00015973,2]
[349234658,1737058238230,-103.81737245,0.00015973,2]
[349234659,1737058238239,-211.50342006,0.00016462,2]
[349234660,1737058238248,-300.0,0.00016626,2]
[349234661,1737058238257,-6882.35502333,0.00016628,2]
[349234662,1737058238322,-56746.67160176,0.00016628,2]
[349234663,1737058238334,-483.97337491,0.00016628,2]
[349234664,1737058238343,-7184.84604944,0.00016629,2]
[349234671,1737058240531,-11993.78232429,0.00016629,2]
[349234672,1737058240545,-1401.00747317,0.00016629,2]
[349234673,1737058240557,-4320.3641531,0.00016629,2]
[349234674,1737058240567,-557.07308,0.0001748,2]
[349234675,1737058240576,-420.0,0.00018166,2]
[349234676,1737058240586,-2588.36316012,0.000185,2]
[349234677,1737058240595,-2464.19960678,0.000185,2]
[349234678,1737058240607,-124.1635532,0.000185,2]
[349234679,1737058240618,-2213.3364468,0.000185,2]
[349234680,1737058240630,-375.02671318,0.000185,2]
[349234681,1737058240640,-288.25873421,0.00018517,2]
[349234682,1737058240650,-2588.36315998,0.00018521,2]
[349234683,1737058240659,-2588.36315998,0.00018728,2]
[349234684,1737058240669,-1918.56242641,0.000189,2]
[349234685,1737058240678,-2350.79501807,0.00018934,2]
[349234686,1737058240695,-237.56814191,0.00018934,2]
[349234687,1737058240705,-2588.36315998,0.00019141,2]
[349234688,1737058240715,-504.96294223,0.00019178,2]
[349234689,1737058240724,-500.0,0.00019178,2]
[349234690,1737058240735,-484.43754296,0.00019178,2]
[349234691,1737058240744,-500.0,0.00019178,2]
[349234692,1737058240753,-333.06673256,0.00019178,2]
[349234693,1737058240762,-500.0,0.00019178,2]
[349234694,1737058240880,-611.10010535,0.00019178,2]
[349234695,1737058240891,-500.74562956,0.00019178,2]
[349234696,1737058240901,-500.0,0.00019178,2]
[349234697,1737058240912,-500.0,0.00019178,2]
[349234698,1737058240921,-500.6946579,0.00019178,2]
[349234699,1737058240931,-500.0,0.00019178,2]
[349234700,1737058240941,-500.0,0.00019178,2]
[349234701,1737058240950,-500.0,0.00019178,2]
[349234702,1737058240960,-410.87524537,0.00019178,2]
[349234703,1737058240970,-500.0,0.00019178,2]
[349234704,1737058240979,-639.96,0.00019178,2]
[349234705,1737058240988,-167.839272,0.00019178,2]
[349234706,1737058240999,-561.97,0.00019315,2]
[349234707,1737058241008,-639.96,0.00019315,3]
[349234708,1737058241019,-2588.36315998,0.00019348,2]
[349234709,1737058241029,-210.144,0.00019408,2]
[349234710,1737058241043,-639.96,0.00019452,3]
[349234711,1737058241060,-2588.36315998,0.00019555,2]
[349234712,1737058241069,-639.96,0.00019589,3]
[349234713,1737058241079,-639.96,0.00019726,3]
[349234714,1737058241088,-2588.36315998,0.00019762,2]
[349234715,1737058241097,-587.0,0.00019849,2]
[349234716,1737058241107,-639.96,0.00019863,3]
[349234717,1737058241117,-192.61488291,0.00019899,2]
[349234718,1737058241127,-2588.36315998,0.00019969,2]
[349234719,1737058241137,-350.19042805,0.00019973,2]
[349234720,1737058241146,-364.9377508,0.00019973,2]
[349234721,1737058241155,-500.0,0.00019998,3]
[349234722,1737058241164,-563.74400931,0.00019998,2]
[349234723,1737058241174,-500.0,0.00019998,2]
[349234724,1737058241183,-417.625,0.00019998,2]
[349234725,1737058241192,-500.0,0.00019998,2]
[349234726,1737058241202,-500.0,0.00019998,2]
[349234727,1737058241212,-500.0,0.00019998,2]
[349234728,1737058241221,-500.0,0.00019998,2]
[349234729,1737058241231,-500.0,0.00019998,2]
[349234730,1737058241240,-500.0,0.00019998,2]
[349234731,1737058241249,-500.0,0.00019998,2]
[349234732,1737058241259,-500.0,0.00019998,2]
[349234733,1737058241269,-500.0,0.00019998,2]
[349234734,1737058241280,-500.0,0.00019998,2]
[349234735,1737058241289,-500.0,0.00019998,2]
[349234736,1737058241298,-500.0,0.00019998,2]
[349234737,1737058241309,-500.0,0.00019998,2]
[349234738,1737058241318,-500.0,0.00019998,2]
[349234739,1737058241328,-500.0,0.00019998,2]
[349234740,1737058241338,-217.37184039,0.00019998,2]
[349234741,1737058241349,-500.0,0.00019998,2]
[349234742,1737058241359,-500.0,0.00019998,2]
[349234743,1737058241368,-600.0,0.00019999,2]
[349234744,1737058241377,-190.19947429,0.00019999,2]
[349234745,1737058241387,-500.0,0.00019999,2]
[349234746,1737058241396,-261.40875383,0.00019999,2]
[349234747,1737058241406,-500.0,0.00019999,2]
[349234748,1737058241416,-252.33785534,0.00019999,2]
[349234788,1737058243373,-247.66214466,0.00019999,2]
[349234789,1737058243383,-11.33785534,0.0002,5]
[349234790,1737058243395,-2449.24720721,0.0002,5]
[349234791,1737058243404,-1708.17481012,0.0002,3]
[349234792,1737058243417,-876.82518988,0.0002,3]
[349234793,1737058243426,-380.78689612,0.0002,3]
[349234794,1737058243438,-514.5,0.0002,3]
[349234795,1737058243449,-417.625,0.0002,3]
[349234812,1737058246324,-191.58527707,0.00016528,2]
[349234813,1737058246334,-535.38472293,0.0002,3]
[349234814,1737058246345,-499.8,0.0002,3]
[349234815,1737058246377,-232.90338095,0.0002,3]
[349234816,1737058246386,-100.45161855,0.0002,3]
[349234821,1737058249052,182.492721,0.00013973,2]
[349234827,1737059176791,182.492721,0.00013973,2]
[349234957,1737059435951,-500.0,0.00017977,2]
[349234958,1737059435962,-857.139621,0.00018077,2]
[349234959,1737059435974,-637.0,0.0001855,2]
[349234960,1737059435983,-300.0,0.0001855,2]
[349234961,1737059435992,-21306.6705961,0.00018551,2]
[349234962,1737059436002,-318.53989069,0.0001881,2]
[349234963,1737059436012,-1279.04161761,0.000189,2]
[349234964,1737059436021,-32165.5678856,0.0001899,2]
[349234965,1737059436032,-500.0,0.00019073,2]
[349234966,1737059436042,-12998.81709502,0.00019095,2]
[349234967,1737059436051,-500.0,0.00019178,2]
[349234968,1737059436061,-500.0,0.00019178,2]
[349234969,1737059436070,-500.0,0.00019178,2]
[349234970,1737059436079,-500.0,0.00019178,2]
[349234971,1737059436089,-500.0,0.00019178,2]
[349234972,1737059436099,-500.0,0.00019178,2]
[349234973,1737059436109,-154.3,0.00019178,2]
[349234974,1737059436118,-12998.81709502,0.0001924,2]
[349234975,1737059436129,-500.0,0.00019315,3]
[349234976,1737059436139,-500.0,0.00019315,3]
[349234977,1737059436149,-500.0,0.00019315,2]
[349234978,1737059436158,-228.197,0.0001941,2]
[349234979,1737059436167,-500.0,0.00019452,3]
[349234980,1737059436177,-500.0,0.00019452,2]
[349234981,1737059436186,-500.0,0.00019589,3]
[349234982,1737059436196,-535.44,0.00019589,2]
[349234983,1737059436206,-12998.81709502,0.00019677,2]
[349234984,1737059436215,-500.0,0.00019726,3]
[349234985,1737059436224,-4295.53953809,0.000198,2]
[349234986,1737059436234,-500.0,0.00019863,3]
[349234987,1737059436243,-1646.10646473,0.000199,2]
[349234988,1737059436253,-500.0,0.00019973,2]
[349234989,1737059436262,-12998.81709503,0.00019986,2]
[349234990,1737059436272,-500.0,0.00019995,2]
[349234991,1737059436283,-500.0,0.00019995,2]
[349234992,1737059436292,-500.0,0.00019995,2]
[349234993,1737059436301,-500.0,0.00019995,2]
[349234994,1737059436309,-500.0,0.00019995,2]
[349234995,1737059436320,-500.0,0.00019995,2]
[349234996,1737059436330,-434.49835546,0.00019995,2]
[349234997,1737059436340,-500.0,0.00019995,2]
[349234998,1737059436350,-500.0,0.00019995,2]
[349234999,1737059436359,-500.0,0.00019995,2]
[349235000,1737059436368,-500.0,0.00019995,2]
[349235001,1737059436377,-500.0,0.00019995,2]
[349235002,1737059436387,-500.0,0.00019995,2]
[349235003,1737059436396,-390.29588341,0.00019995,2]
[349235004,1737059436407,-500.0,0.00019995,2]
[349235005,1737059436416,-500.0,0.00019995,2]
[349235006,1737059436427,-500.0,0.00019995,2]
[349235007,1737059436438,-567.96447367,0.00019995,2]
[349235008,1737059436447,-534.98999894,0.00019995,2]
[349235009,1737059436457,-500.0,0.00019995,2]
[349235010,1737059436466,-307.74821219,0.00019995,2]
[349235011,1737059436476,-500.0,0.00019995,2]
[349235012,1737059436485,-500.0,0.00019995,2]
[349235013,1737059436494,-500.0,0.00019995,2]
[349235014,1737059436503,-500.0,0.00019995,2]
[349235015,1737059436513,-500.0,0.00019995,2]
[349235016,1737059436523,-500.0,0.00019995,2]
[349235017,1737059436533,-500.0,0.00019995,2]
[349235018,1737059436542,-500.0,0.00019995,2]
[349235019,1737059436551,-500.0,0.00019995,2]
[349235020,1737059436561,-500.0,0.00019995,2]
[349235021,1737059436573,-400.0,0.00019995,2]
[349235022,1737059436584,-482.66500447,0.00019995,2]
[349235023,1737059436595,-500.0,0.00019995,2]
[349235024,1737059436606,-500.0,0.00019995,2]
[349235025,1737059436616,-625.74695664,0.00019995,2]
[349235026,1737059436626,-500.0,0.00019995,2]
[349235027,1737059436636,-500.0,0.00019995,2]
[349235028,1737059436646,-500.0,0.00019995,2]
[349235029,1737059436656,-500.0,0.00019995,2]
[349235030,1737059436668,-500.0,0.00019995,2]
[349235031,1737059436677,-500.0,0.00019995,2]
[349235032,1737059436686,-500.0,0.00019995,2]
[349235033,1737059436695,-500.0,0.00019995,2]
[349235034,1737059436705,-500.0,0.00019995,2]
[349235035,1737059436714,-500.0,0.00019995,2]
[349235036,1737059436723,-500.0,0.00019995,2]
[349235037,1737059436734,-500.0,0.00019995,2]
[349235038,1737059436743,-500.0,0.00019995,2]
[349235039,1737059436753,-500.0,0.00019995,2]
[349235040,1737059436763,-500.0,0.00019995,2]
[349235041,1737059436772,-500.0,0.00019995,2]
[349235042,1737059436781,-307.02297705,0.00019995,2]
[349235043,1737059436790,-500.0,0.00019995,2]
[349235044,1737059436800,-500.0,0.00019995,2]
[349235045,1737059436809,-500.0,0.00019995,2]
[349235046,1737059436819,-500.0,0.00019995,2]
[349235047,1737059436828,-500.0,0.00019995,2]
[349235048,1737059436838,-500.0,0.00019995,2]
[349235049,1737059436848,-500.0,0.00019995,2]
[349235050,1737059436858,-500.0,0.00019995,2]
[349235051,1737059436868,-500.0,0.00019995,2]
[349235052,1737059436878,-500.0,0.00019995,2]
[349235053,1737059436888,-517.4909793,0.00019995,2]
[349235054,1737059436900,-500.0,0.00019995,2]
[349235055,1737059436910,-500.0,0.00019995,2]
[349235056,1737059436921,-500.0,0.00019995,2]
[349235057,1737059436930,-500.0,0.00019995,2]
[349235058,1737059436940,-500.0,0.00019995,2]
[349235059,1737059436950,-500.0,0.00019995,2]
[349235060,1737059436960,-500.0,0.00019995,2]
[349235061,1737059436970,-500.0,0.00019995,2]
[349235062,1737059436980,-500.0,0.00019995,2]
[349235063,1737059436990,-500.0,0.00019995,2]
[349235064,1737059437001,-500.0,0.00019995,2]
[349235065,1737059437011,-500.0,0.00019995,2]
[349235066,1737059437020,-500.0,0.00019995,2]
[349235067,1737059437030,-500.0,0.00019995,2]
[349235068,1737059437041,-500.0,0.00019995,2]
[349235069,1737059437050,-500.0,0.00019995,2]
[349235070,1737059437060,-500.0,0.00019995,2]
[349235071,1737059437069,-500.0,0.00019995,2]
[349235072,1737059437078,-500.0,0.00019995,2]
[349235073,1737059437087,-500.0,0.00019995,2]
[349235074,1737059437096,-500.0,0.00019995,2]
[349235075,1737059437106,-500.0,0.00019995,2]
[349235076,1737059437115,-500.0,0.00019995,2]
[349235077,1737059437125,-1360.84277737,0.00019996,5]
[349235078,1737059437135,-500.0,0.00019997,3]
[349235079,1737059437145,-500.0,0.00019997,3]
[349235080,1737059437154,-161.446376,0.00019998,2]
[349235081,1737059437164,-151.0,0.00019998,2]
[349235082,1737059437173,-151.0,0.00019998,2]
[349235083,1737059437183,-500.0,0.00019999,3]
[349235084,1737059437192,-500.0,0.00019999,3]
[349235085,1737059437202,-500.0,0.00019999,3]
[349235086,1737059437211,-500.0,0.00019999,3]
[349235087,1737059437220,-500.0,0.00019999,3]
[349235088,1737059437229,-500.0,0.00019999,3]
[349235089,1737059437239,-500.0,0.00019999,3]
[349235090,1737059437249,-500.0,0.00019999,3]
[349235091,1737059437258,-500.0,0.00019999,3]
[349235092,1737059437268,-500.0,0.00019999,3]
[349235093,1737059437278,-500.0,0.00019999,3]
[349235094,1737059437289,-500.0,0.00019999,3]